[Event "November 21 Early 2023"]
[Site "https://www.chess.com"]
[Date "2023.11.21"]
[Round "6"]
[White "Zakhartsov, Vladimir"]
[Black "Arhan_Anand"]
[Result "1-0"]
[Board "32"]
[TimeControl "180+1"]
[WhiteFideId "4145097"]
[WhiteElo "2448"]
[BlackElo "2660"]
[WhiteTeam "RUS"]
[WhiteClock "0:00:23"]
[BlackClock "0:00:20"]

1. e4 {[%clk 0:03:00]}  c5 {[%clk 0:02:59]} 2. Nf3 {[%clk 0:03:00]}  d6 {[%clk 0:03:00]} 3. Bb5+ {[%clk 0:02:58]}  Nd7 {[%clk 0:02:59]} 4. c3 {[%clk 0:02:53]}  Nf6 {[%clk 0:02:58]} 5. Qe2 {[%clk 0:02:50]}  a6 {[%clk 0:02:58]} 6. Ba4 {[%clk 0:02:51]}  b5 {[%clk 0:02:59]} 7. Bc2 {[%clk 0:02:51]}  c4 {[%clk 0:02:59]} 8. b3 {[%clk 0:02:49]}  Qc7 {[%clk 0:02:52]} 9. bxc4 {[%clk 0:02:36]}  bxc4 {[%clk 0:02:53]} 10. a4 {[%clk 0:02:34]}  Bb7 {[%clk 0:02:52]} 11. Na3 {[%clk 0:02:28]}  Rc8 {[%clk 0:02:53]} 12. O-O {[%clk 0:02:25]}  g6 {[%clk 0:02:50]} 13. Rb1 {[%clk 0:02:23]}  Ba8 {[%clk 0:02:49]} 14. Rb4 {[%clk 0:02:19]}  d5 {[%clk 0:02:44]} 15. e5 {[%clk 0:02:13]}  Ng4 {[%clk 0:01:45]} 16. e6 {[%clk 0:02:10]}  fxe6 {[%clk 0:01:44]} 17. Qxe6 {[%clk 0:02:06]}  Nde5 {[%clk 0:01:33]} 18. Nxe5 {[%clk 0:01:48]}  Nxe5 {[%clk 0:01:33]} 19. d4 {[%clk 0:01:18]}  Nf7 {[%clk 0:01:07]} 20. Re1 {[%clk 0:01:11]}  Qd7 {[%clk 0:01:01]} 21. Qxa6 {[%clk 0:01:04]}  Bg7 {[%clk 0:00:55]} 22. Qe6 {[%clk 0:00:57]}  Qxe6 {[%clk 0:00:48]} 23. Rxe6 {[%clk 0:00:58]}  Nd8 {[%clk 0:00:49]} 24. Re1 {[%clk 0:00:51]}  Kf7 {[%clk 0:00:45]} 25. Nb5 {[%clk 0:00:45]}  Nc6 {[%clk 0:00:44]} 26. Rb1 {[%clk 0:00:45]}  Rb8 {[%clk 0:00:42]} 27. f4 {[%clk 0:00:42]}  Rhc8 {[%clk 0:00:40]} 28. f5 {[%clk 0:00:42]}  Bb7 {[%clk 0:00:34]} 29. Bf4 {[%clk 0:00:38]}  Ba6 {[%clk 0:00:28]} 30. Bxb8 {[%clk 0:00:36]}  Rxb8 {[%clk 0:00:29]} 31. fxg6+ {[%clk 0:00:33]}  hxg6 {[%clk 0:00:29]} 32. Nc7 {[%clk 0:00:32]}  Rxb1 {[%clk 0:00:25]} 33. Rxb1 {[%clk 0:00:33]}  Bc8 {[%clk 0:00:26]} 34. Nxd5 {[%clk 0:00:32]}  e5 {[%clk 0:00:26]} 35. dxe5 {[%clk 0:00:29]}  Bxe5 {[%clk 0:00:27]} 36. Be4 {[%clk 0:00:26]}  Na5 {[%clk 0:00:27]} 37. Rb5 {[%clk 0:00:23]}  Nc6 {[%clk 0:00:20]} 1-0

[Event "November 21 Early 2023"]
[Site "https://www.chess.com"]
[Date "2023.11.21"]
[Round "6"]
[White "Yeletsky, Ivan"]
[Black "Al-Tarboush, Ward"]
[Result "0-1"]
[Board "33"]
[TimeControl "180+1"]
[WhiteFideId "24180327"]
[BlackFideId "7601450"]
[WhiteElo "2358"]
[BlackElo "2280"]
[WhiteTeam "RUS"]
[BlackTeam "NOR"]
[WhiteClock "0:00:03"]
[BlackClock "0:00:46"]

1. e4 {[%clk 0:03:00]}  e6 {[%clk 0:02:59]} 2. d4 {[%clk 0:03:00]}  d5 {[%clk 0:02:59]} 3. Nc3 {[%clk 0:03:00]}  Nf6 {[%clk 0:02:57]} 4. e5 {[%clk 0:02:59]}  Nfd7 {[%clk 0:02:57]} 5. f4 {[%clk 0:03:00]}  c5 {[%clk 0:02:57]} 6. Nf3 {[%clk 0:03:01]}  Nc6 {[%clk 0:02:57]} 7. Be3 {[%clk 0:03:01]}  a6 {[%clk 0:02:56]} 8. Qd2 {[%clk 0:02:55]}  b5 {[%clk 0:02:55]} 9. Nd1 {[%clk 0:02:55]}  Bb7 {[%clk 0:02:51]} 10. c3 {[%clk 0:02:55]}  Be7 {[%clk 0:02:50]} 11. Bd3 {[%clk 0:02:55]}  f6 {[%clk 0:02:49]} 12. O-O {[%clk 0:02:53]}  f5 {[%clk 0:02:35]} 13. Nf2 {[%clk 0:02:40]}  g6 {[%clk 0:02:34]} 14. a4 {[%clk 0:02:37]}  c4 {[%clk 0:02:31]} 15. Be2 {[%clk 0:02:35]}  b4 {[%clk 0:02:30]} 16. g4 {[%clk 0:02:35]}  Qb6 {[%clk 0:02:17]} 17. b3 {[%clk 0:02:21]}  Na5 {[%clk 0:02:15]} 18. bxc4 {[%clk 0:02:20]}  Nxc4 {[%clk 0:02:08]} 19. Bxc4 {[%clk 0:02:01]}  dxc4 {[%clk 0:02:09]} 20. d5 {[%clk 0:02:02]}  Qd8 {[%clk 0:01:54]} 21. dxe6 {[%clk 0:02:01]}  Bxf3 {[%clk 0:01:53]} 22. exd7+ {[%clk 0:01:55]}  Qxd7 {[%clk 0:01:53]} 23. cxb4 {[%clk 0:01:43]}  fxg4 {[%clk 0:01:31]} 24. Qc3 {[%clk 0:01:35]}  Qe6 {[%clk 0:01:19]} 25. b5 {[%clk 0:01:13]}  O-O {[%clk 0:01:16]} 26. b6 {[%clk 0:01:12]}  Bh4 {[%clk 0:01:13]} 27. Rac1 {[%clk 0:01:09]}  Rac8 {[%clk 0:01:11]} 28. Bd4 {[%clk 0:00:52]}  Bb7 {[%clk 0:01:02]} 29. Rce1 {[%clk 0:00:27]}  Qd5 {[%clk 0:00:58]} 30. Ne4 {[%clk 0:00:23]}  Bxe1 {[%clk 0:00:57]} 31. Rxe1 {[%clk 0:00:24]}  Rxf4 {[%clk 0:00:56]} 32. e6 {[%clk 0:00:04]}  Rxe4 {[%clk 0:00:50]} 33. Rd1 {[%clk 0:00:05]}  Re1+ {[%clk 0:00:46]} 34. Qxe1 {[%clk 0:00:03]}  Qg2# {[%clk 0:00:46]} 0-1

[Event "November 21 Early 2023"]
[Site "https://www.chess.com"]
[Date "2023.11.21"]
[Round "6"]
[White "mind1mover"]
[Black "Aradhya, Garg"]
[Result "0-1"]
[Board "37"]
[TimeControl "180+1"]
[BlackFideId "25006746"]
[WhiteElo "2882"]
[BlackElo "2323"]
[BlackTeam "IND"]
[WhiteClock "0:00:00"]
[BlackClock "0:01:52"]

1. e4 {[%clk 0:03:00]}  e5 {[%clk 0:02:59]} 2. Nf3 {[%clk 0:03:00]}  Nc6 {[%clk 0:02:59]} 3. Bb5 {[%clk 0:03:00]}  a6 {[%clk 0:02:59]} 4. Bxc6 {[%clk 0:03:00]}  dxc6 {[%clk 0:02:59]} 5. d4 {[%clk 0:03:01]}  exd4 {[%clk 0:02:57]} 6. Qxd4 {[%clk 0:03:01]}  Qxd4 {[%clk 0:02:58]} 7. Nxd4 {[%clk 0:03:02]}  Bd7 {[%clk 0:02:57]} 8. Nc3 {[%clk 0:03:02]}  O-O-O {[%clk 0:02:58]} 9. Be3 {[%clk 0:03:02]}  Bd6 {[%clk 0:02:54]} 10. O-O-O {[%clk 0:03:02]}  Ne7 {[%clk 0:02:54]} 11. f3 {[%clk 0:02:51]}  Rde8 {[%clk 0:02:53]} 12. g4 {[%clk 0:02:47]}  h5 {[%clk 0:02:52]} 13. h3 {[%clk 0:02:47]}  Ng6 {[%clk 0:02:48]} 14. Nde2 {[%clk 0:02:31]}  Ne5 {[%clk 0:02:42]} 15. f4 {[%clk 0:02:26]}  Nc4 {[%clk 0:02:38]} 16. Bd4 {[%clk 0:02:24]}  hxg4 {[%clk 0:02:38]} 17. b3 {[%clk 0:02:20]}  Ba3+ {[%clk 0:02:34]} 18. Kb1 {[%clk 0:02:21]}  Nd6 {[%clk 0:02:34]} 19. Bxg7 {[%clk 0:01:41]}  Rxh3 {[%clk 0:02:34]} 20. Be5 {[%clk 0:01:20]}  f6 {[%clk 0:02:09]} 21. Bxf6 {[%clk 0:01:08]}  Nxe4 {[%clk 0:02:09]} 22. Be5 {[%clk 0:00:48]}  Nf2 {[%clk 0:02:07]} 23. Rxh3 {[%clk 0:00:46]}  gxh3 {[%clk 0:02:08]} 24. Rf1 {[%clk 0:00:46]}  h2 {[%clk 0:01:59]} 25. Ng3 {[%clk 0:00:46]}  Bc5 {[%clk 0:01:59]} 26. Nce4 {[%clk 0:00:37]}  Nxe4 {[%clk 0:01:56]} 27. Nxe4 {[%clk 0:00:38]}  Bg1 {[%clk 0:01:56]} 28. Ng3 {[%clk 0:00:33]}  Bh3 {[%clk 0:01:56]} 29. Re1 {[%clk 0:00:30]}  Bf2 {[%clk 0:01:54]} 30. Rh1 {[%clk 0:00:25]}  Bxg3 {[%clk 0:01:54]} 31. Kb2 {[%clk 0:00:24]}  Bg2 {[%clk 0:01:53]} 32. Ra1 {[%clk 0:00:23]}  h1=Q {[%clk 0:01:51]} 33. Rxh1 {[%clk 0:00:24]}  Bxh1 {[%clk 0:01:52]} 34. a4 {[%clk 0:00:24]}  Bd5 {[%clk 0:01:52]} 35. c4 {[%clk 0:00:00]}  Be6 {[%clk 0:01:52]} 0-1

[Event "November 21 Early 2023"]
[Site "https://www.chess.com"]
[Date "2023.11.21"]
[Round "6"]
[White "Gokerkan, Cem Kaan"]
[Black "Hua, Lefong"]
[Result "1/2-1/2"]
[Board "38"]
[TimeControl "180+1"]
[WhiteFideId "6336760"]
[BlackFideId "2602253"]
[WhiteElo "2365"]
[BlackElo "2734"]
[WhiteTeam "TUR"]
[BlackTeam "CAN"]
[WhiteClock "0:01:02"]
[BlackClock "0:00:51"]

1. e4 {[%clk 0:03:00]}  c5 {[%clk 0:02:59]} 2. c3 {[%clk 0:03:01]}  Nf6 {[%clk 0:02:59]} 3. e5 {[%clk 0:03:01]}  Nd5 {[%clk 0:03:00]} 4. d4 {[%clk 0:03:02]}  cxd4 {[%clk 0:03:01]} 5. Bc4 {[%clk 0:03:02]}  Nb6 {[%clk 0:03:00]} 6. Bb3 {[%clk 0:03:02]}  d6 {[%clk 0:02:55]} 7. Nf3 {[%clk 0:03:02]}  Nc6 {[%clk 0:02:55]} 8. exd6 {[%clk 0:02:55]}  Qxd6 {[%clk 0:02:55]} 9. cxd4 {[%clk 0:02:55]}  Be6 {[%clk 0:02:52]} 10. O-O {[%clk 0:02:53]}  Bxb3 {[%clk 0:02:46]} 11. Qxb3 {[%clk 0:02:54]}  e6 {[%clk 0:02:46]} 12. Nc3 {[%clk 0:02:54]}  Be7 {[%clk 0:02:46]} 13. Rd1 {[%clk 0:02:54]}  O-O {[%clk 0:02:43]} 14. d5 {[%clk 0:02:52]}  exd5 {[%clk 0:02:35]} 15. Nxd5 {[%clk 0:02:49]}  Nxd5 {[%clk 0:02:31]} 16. Rxd5 {[%clk 0:02:49]}  Qb4 {[%clk 0:02:21]} 17. Be3 {[%clk 0:02:09]}  Qxb3 {[%clk 0:02:02]} 18. axb3 {[%clk 0:02:10]}  Rfd8 {[%clk 0:02:01]} 19. Rb5 {[%clk 0:02:04]}  b6 {[%clk 0:01:58]} 20. g3 {[%clk 0:02:01]}  Bf6 {[%clk 0:01:57]} 21. Ra2 {[%clk 0:01:51]}  Na5 {[%clk 0:01:38]} 22. Kg2 {[%clk 0:01:44]}  Rac8 {[%clk 0:01:28]} 23. Nd2 {[%clk 0:01:19]}  Bd4 {[%clk 0:01:15]} 24. Bxd4 {[%clk 0:01:04]}  Rxd4 {[%clk 0:00:51]} 25. Nc4 {[%clk 0:01:02]} 1/2-1/2

[Event "November 21 Early 2023"]
[Site "https://www.chess.com"]
[Date "2023.11.21"]
[Round "6"]
[White "Volkov, Maksim"]
[Black "Javakhadze, Zurab"]
[Result "0-1"]
[Board "41"]
[TimeControl "180+1"]
[WhiteFideId "54123070"]
[BlackFideId "13603647"]
[WhiteElo "2293"]
[BlackElo "2381"]
[WhiteTeam "RUS"]
[BlackTeam "GEO"]
[WhiteClock "0:00:12"]
[BlackClock "0:00:04"]

1. d4 {[%clk 0:03:00]}  Nf6 {[%clk 0:02:59]} 2. c4 {[%clk 0:03:01]}  e6 {[%clk 0:02:59]} 3. g3 {[%clk 0:03:01]}  d5 {[%clk 0:02:59]} 4. Bg2 {[%clk 0:03:01]}  Be7 {[%clk 0:03:00]} 5. Nf3 {[%clk 0:03:01]}  O-O {[%clk 0:03:00]} 6. Nc3 {[%clk 0:03:01]}  a5 {[%clk 0:02:57]} 7. O-O {[%clk 0:02:57]}  c6 {[%clk 0:02:58]} 8. Qd3 {[%clk 0:02:50]}  b6 {[%clk 0:02:57]} 9. e4 {[%clk 0:02:49]}  Ba6 {[%clk 0:02:54]} 10. b3 {[%clk 0:02:49]}  b5 {[%clk 0:02:54]} 11. Ne5 {[%clk 0:02:27]}  bxc4 {[%clk 0:02:50]} 12. bxc4 {[%clk 0:02:27]}  Nfd7 {[%clk 0:02:45]} 13. exd5 {[%clk 0:01:49]}  cxd5 {[%clk 0:02:43]} 14. Rd1 {[%clk 0:01:46]}  Qc8 {[%clk 0:02:18]} 15. Nxd7 {[%clk 0:01:32]}  Nxd7 {[%clk 0:02:16]} 16. Qe3 {[%clk 0:01:32]}  Bb4 {[%clk 0:01:42]} 17. c5 {[%clk 0:01:27]}  Bxc3 {[%clk 0:01:25]} 18. Qxc3 {[%clk 0:01:28]}  Nb8 {[%clk 0:01:26]} 19. Qxa5 {[%clk 0:01:22]}  Nc6 {[%clk 0:01:21]} 20. Qc3 {[%clk 0:01:21]}  Bc4 {[%clk 0:01:19]} 21. a4 {[%clk 0:01:18]}  Rb8 {[%clk 0:01:10]} 22. Ra3 {[%clk 0:01:11]}  Qa6 {[%clk 0:01:06]} 23. Bf4 {[%clk 0:01:09]}  Rb4 {[%clk 0:01:01]} 24. Rda1 {[%clk 0:01:05]}  Ra8 {[%clk 0:00:51]} 25. a5 {[%clk 0:00:59]}  Bb5 {[%clk 0:00:31]} 26. Be3 {[%clk 0:00:49]}  Bc4 {[%clk 0:00:28]} 27. h4 {[%clk 0:00:46]}  h6 {[%clk 0:00:20]} 28. Kh2 {[%clk 0:00:42]}  Qb7 {[%clk 0:00:19]} 29. Bf4 {[%clk 0:00:35]}  Ra6 {[%clk 0:00:18]} 30. g4 {[%clk 0:00:25]}  Be2 {[%clk 0:00:14]} 31. Kg3 {[%clk 0:00:15]}  Nxd4 {[%clk 0:00:07]} 32. Be5 {[%clk 0:00:14]}  Nc6 {[%clk 0:00:04]} 33. Bxg7 {[%clk 0:00:14]}  Qb8+ {[%clk 0:00:04]} 34. f4 {[%clk 0:00:12]}  Qxf4+ {[%clk 0:00:03]} 35. Kh3 {[%clk 0:00:12]}  Bxg4# {[%clk 0:00:04]} 0-1

[Event "November 21 Early 2023"]
[Site "https://www.chess.com"]
[Date "2023.11.21"]
[Round "6"]
[White "Klukin, Kirill"]
[Black "Piesik, Piotr"]
[Result "0-1"]
[Board "44"]
[TimeControl "180+1"]
[WhiteFideId "24199273"]
[BlackFideId "1136194"]
[WhiteElo "2344"]
[BlackElo "2309"]
[WhiteTeam "RUS"]
[BlackTeam "CZE"]
[WhiteClock "0:00:02"]
[BlackClock "0:00:25"]

1. d4 {[%clk 0:03:00]}  c5 {[%clk 0:02:52]} 2. d5 {[%clk 0:02:59]}  e5 {[%clk 0:02:52]} 3. c4 {[%clk 0:03:00]}  d6 {[%clk 0:02:53]} 4. Nc3 {[%clk 0:03:00]}  Be7 {[%clk 0:02:53]} 5. g3 {[%clk 0:03:01]}  Bg5 {[%clk 0:02:53]} 6. Bg2 {[%clk 0:03:01]}  Bxc1 {[%clk 0:02:52]} 7. Qxc1 {[%clk 0:03:02]}  Ne7 {[%clk 0:02:53]} 8. e4 {[%clk 0:03:03]}  O-O {[%clk 0:02:53]} 9. Nge2 {[%clk 0:03:03]}  a6 {[%clk 0:02:52]} 10. O-O {[%clk 0:03:04]}  f5 {[%clk 0:02:52]} 11. f4 {[%clk 0:03:04]}  Nd7 {[%clk 0:02:51]} 12. a4 {[%clk 0:03:01]}  h6 {[%clk 0:02:48]} 13. Qd2 {[%clk 0:02:55]}  Qe8 {[%clk 0:02:48]} 14. Rae1 {[%clk 0:02:54]}  Qh5 {[%clk 0:02:42]} 15. Bf3 {[%clk 0:02:46]}  Qg6 {[%clk 0:02:37]} 16. b3 {[%clk 0:02:34]}  Kh8 {[%clk 0:02:36]} 17. Qc2 {[%clk 0:02:23]}  Qf6 {[%clk 0:02:31]} 18. exf5 {[%clk 0:02:17]}  Nxf5 {[%clk 0:02:31]} 19. Be4 {[%clk 0:02:17]}  Ne3 {[%clk 0:02:25]} 20. Qd2 {[%clk 0:02:06]}  Nxf1 {[%clk 0:02:25]} 21. Rxf1 {[%clk 0:02:07]}  Qe7 {[%clk 0:02:16]} 22. Bb1 {[%clk 0:02:07]}  Nf6 {[%clk 0:02:15]} 23. fxe5 {[%clk 0:02:03]}  Qxe5 {[%clk 0:01:56]} 24. Nf4 {[%clk 0:02:04]}  Kg8 {[%clk 0:01:54]} 25. Ng6 {[%clk 0:01:57]}  Qd4+ {[%clk 0:01:46]} 26. Qxd4 {[%clk 0:01:57]}  cxd4 {[%clk 0:01:46]} 27. Ne4 {[%clk 0:01:35]}  Bh3 {[%clk 0:01:39]} 28. Rf4 {[%clk 0:01:25]}  Rfe8 {[%clk 0:01:25]} 29. Kf2 {[%clk 0:01:20]}  Ng4+ {[%clk 0:01:19]} 30. Kg1 {[%clk 0:01:06]}  Rad8 {[%clk 0:01:18]} 31. Bc2 {[%clk 0:00:37]}  Ne3 {[%clk 0:01:05]} 32. Bd3 {[%clk 0:00:33]}  Bf5 {[%clk 0:01:04]} 33. Nh4 {[%clk 0:00:22]}  Bxe4 {[%clk 0:01:00]} 34. Rxe4 {[%clk 0:00:23]}  Rxe4 {[%clk 0:01:00]} 35. Bxe4 {[%clk 0:00:23]}  Rf8 {[%clk 0:00:52]} 36. Nf3 {[%clk 0:00:22]}  g5 {[%clk 0:00:51]} 37. h3 {[%clk 0:00:18]}  h5 {[%clk 0:00:49]} 38. Nxd4 {[%clk 0:00:18]}  Rf1+ {[%clk 0:00:49]} 39. Kh2 {[%clk 0:00:19]}  Rf2+ {[%clk 0:00:48]} 40. Kg1 {[%clk 0:00:19]}  Rd2 {[%clk 0:00:44]} 41. Nf5 {[%clk 0:00:17]}  Nxf5 {[%clk 0:00:43]} 42. Bxf5 {[%clk 0:00:18]}  a5 {[%clk 0:00:41]} 43. h4 {[%clk 0:00:09]}  gxh4 {[%clk 0:00:37]} 44. gxh4 {[%clk 0:00:10]}  Kg7 {[%clk 0:00:36]} 45. Kf1 {[%clk 0:00:09]}  Kf6 {[%clk 0:00:35]} 46. Ke1 {[%clk 0:00:09]}  Rb2 {[%clk 0:00:32]} 47. c5 {[%clk 0:00:02]}  Kxf5 {[%clk 0:00:25]} 0-1

[Event "November 21 Early 2023"]
[Site "https://www.chess.com"]
[Date "2023.11.21"]
[Round "6"]
[White "Arslanov, Shamil"]
[Black "Idani, Pouya"]
[Result "0-1"]
[Board "45"]
[TimeControl "180+1"]
[WhiteFideId "4192826"]
[BlackFideId "12510130"]
[WhiteElo "2326"]
[BlackElo "2574"]
[WhiteTeam "RUS"]
[BlackTeam "IRI"]
[WhiteClock "0:00:00"]
[BlackClock "0:00:17"]

1. d4 {[%clk 0:03:00]}  Nf6 {[%clk 0:02:59]} 2. f3 {[%clk 0:03:00]}  d5 {[%clk 0:02:58]} 3. e4 {[%clk 0:03:01]}  dxe4 {[%clk 0:02:58]} 4. Nc3 {[%clk 0:03:00]}  e3 {[%clk 0:02:34]} 5. Bxe3 {[%clk 0:03:00]}  Bf5 {[%clk 0:02:33]} 6. g4 {[%clk 0:03:00]}  Bg6 {[%clk 0:02:33]} 7. h4 {[%clk 0:03:00]}  h6 {[%clk 0:02:30]} 8. Nh3 {[%clk 0:02:56]}  Nd5 {[%clk 0:02:22]} 9. Nxd5 {[%clk 0:02:52]}  Qxd5 {[%clk 0:02:23]} 10. Nf4 {[%clk 0:02:51]}  Qd6 {[%clk 0:02:23]} 11. Qd2 {[%clk 0:02:20]}  Nd7 {[%clk 0:02:20]} 12. c4 {[%clk 0:02:11]}  e5 {[%clk 0:02:03]} 13. c5 {[%clk 0:01:59]}  Qe7 {[%clk 0:02:02]} 14. Nxg6 {[%clk 0:01:39]}  fxg6 {[%clk 0:02:03]} 15. O-O-O {[%clk 0:01:34]}  Qf7 {[%clk 0:01:36]} 16. Kb1 {[%clk 0:01:21]}  exd4 {[%clk 0:01:15]} 17. Qxd4 {[%clk 0:01:05]}  Bxc5 {[%clk 0:00:55]} 18. Qe4+ {[%clk 0:00:58]}  Be7 {[%clk 0:00:49]} 19. Bc4 {[%clk 0:00:20]}  Qf6 {[%clk 0:00:47]} 20. Be6 {[%clk 0:00:15]}  O-O-O {[%clk 0:00:36]} 21. g5 {[%clk 0:00:10]}  Qf8 {[%clk 0:00:31]} 22. Qxg6 {[%clk 0:00:05]}  Bd6 {[%clk 0:00:28]} 23. Rd3 {[%clk 0:00:03]}  Kb8 {[%clk 0:00:26]} 24. Bxd7 {[%clk 0:00:04]}  Rxd7 {[%clk 0:00:27]} 25. gxh6 {[%clk 0:00:05]}  gxh6 {[%clk 0:00:27]} 26. Rhd1 {[%clk 0:00:04]}  b6 {[%clk 0:00:20]} 27. h5 {[%clk 0:00:03]}  Rf7 {[%clk 0:00:19]} 28. Qe4 {[%clk 0:00:03]}  Qe7 {[%clk 0:00:18]} 29. Qc6 {[%clk 0:00:02]}  Qe8 {[%clk 0:00:18]} 30. Qd5 {[%clk 0:00:02]}  Rhf8 {[%clk 0:00:17]} 31. Bd4 {[%clk 0:00:02]}  Rf5 {[%clk 0:00:17]} 32. Qe4 {[%clk 0:00:02]}  Qxe4 {[%clk 0:00:17]} 33. fxe4 {[%clk 0:00:03]}  Rxh5 {[%clk 0:00:18]} 34. Re3 {[%clk 0:00:02]}  Re8 {[%clk 0:00:18]} 35. Rde1 {[%clk 0:00:02]}  Be5 {[%clk 0:00:18]} 36. Bc3 {[%clk 0:00:03]}  Kb7 {[%clk 0:00:18]} 37. Bd2 {[%clk 0:00:03]}  Re6 {[%clk 0:00:18]} 38. Rd3 {[%clk 0:00:03]}  Rh2 {[%clk 0:00:18]} 39. Bc1 {[%clk 0:00:03]}  h5 {[%clk 0:00:19]} 40. Rf1 {[%clk 0:00:03]}  h4 {[%clk 0:00:19]} 41. Rf5 {[%clk 0:00:04]}  Bg3 {[%clk 0:00:18]} 42. Rh5 {[%clk 0:00:02]}  Rh1 {[%clk 0:00:18]} 43. Rc3 {[%clk 0:00:02]}  Rc6 {[%clk 0:00:17]} 44. Rxc6 {[%clk 0:00:01]}  Kxc6 {[%clk 0:00:18]} 45. Kc2 {[%clk 0:00:02]}  Kd7 {[%clk 0:00:18]} 46. Be3 {[%clk 0:00:03]}  Re1 {[%clk 0:00:18]} 47. Kd3 {[%clk 0:00:03]}  Rb1 {[%clk 0:00:18]} 48. Kc2 {[%clk 0:00:04]}  Rf1 {[%clk 0:00:18]} 49. Kd3 {[%clk 0:00:04]}  Ke6 {[%clk 0:00:19]} 50. Bd2 {[%clk 0:00:04]}  Kf6 {[%clk 0:00:19]} 51. Rh6+ {[%clk 0:00:03]}  Kg7 {[%clk 0:00:19]} 52. Rh5 {[%clk 0:00:04]}  Rb1 {[%clk 0:00:19]} 53. Kc2 {[%clk 0:00:04]}  Rf1 {[%clk 0:00:19]} 54. Kd3 {[%clk 0:00:04]}  Rh1 {[%clk 0:00:19]} 55. e5 {[%clk 0:00:05]}  h3 {[%clk 0:00:18]} 56. Be3 {[%clk 0:00:03]}  h2 {[%clk 0:00:16]} 57. Rg5+ {[%clk 0:00:04]}  Kf7 {[%clk 0:00:17]} 58. Rxg3 {[%clk 0:00:04]}  Rd1+ {[%clk 0:00:18]} 59. Ke2 {[%clk 0:00:05]}  h1=Q {[%clk 0:00:18]} 60. Rf3+ {[%clk 0:00:00]}  Ke8 {[%clk 0:00:17]} 0-1

[Event "November 21 Early 2023"]
[Site "https://www.chess.com"]
[Date "2023.11.21"]
[Round "6"]
[White "Bodnaruk, Anastasia"]
[Black "Vakhlamov, Igor L."]
[Result "0-1"]
[Board "47"]
[TimeControl "180+1"]
[WhiteFideId "4181751"]
[BlackFideId "24126748"]
[WhiteElo "2260"]
[BlackElo "2407"]
[WhiteTeam "RUS"]
[BlackTeam "RUS"]
[WhiteClock "0:00:00"]
[BlackClock "0:00:10"]

1. e4 {[%clk 0:02:56]}  c5 {[%clk 0:03:00]} 2. Nc3 {[%clk 0:02:55]}  e6 {[%clk 0:03:01]} 3. Nf3 {[%clk 0:02:53]}  Nc6 {[%clk 0:03:01]} 4. Be2 {[%clk 0:02:53]}  Nf6 {[%clk 0:02:56]} 5. O-O {[%clk 0:02:47]}  Be7 {[%clk 0:02:51]} 6. d4 {[%clk 0:02:44]}  cxd4 {[%clk 0:02:52]} 7. Nxd4 {[%clk 0:02:44]}  d5 {[%clk 0:02:52]} 8. exd5 {[%clk 0:02:34]}  exd5 {[%clk 0:02:53]} 9. Bf3 {[%clk 0:02:17]}  O-O {[%clk 0:02:50]} 10. Re1 {[%clk 0:02:15]}  h6 {[%clk 0:02:44]} 11. Nb3 {[%clk 0:02:00]}  Be6 {[%clk 0:02:42]} 12. Nb5 {[%clk 0:01:55]}  Qb6 {[%clk 0:02:30]} 13. N5d4 {[%clk 0:01:53]}  Nxd4 {[%clk 0:02:29]} 14. Nxd4 {[%clk 0:01:53]}  Bc5 {[%clk 0:02:29]} 15. c3 {[%clk 0:01:52]}  Rfe8 {[%clk 0:02:29]} 16. b3 {[%clk 0:01:46]}  Rac8 {[%clk 0:02:26]} 17. Be3 {[%clk 0:01:42]}  Qc7 {[%clk 0:02:03]} 18. Rc1 {[%clk 0:01:35]}  a6 {[%clk 0:02:02]} 19. c4 {[%clk 0:01:29]}  Bxd4 {[%clk 0:01:35]} 20. cxd5 {[%clk 0:01:17]}  Qa5 {[%clk 0:00:38]} 21. dxe6 {[%clk 0:01:10]}  Bxe3 {[%clk 0:00:35]} 22. exf7+ {[%clk 0:01:02]}  Kxf7 {[%clk 0:00:36]} 23. fxe3 {[%clk 0:00:49]}  Rcd8 {[%clk 0:00:33]} 24. Qc2 {[%clk 0:00:45]}  b5 {[%clk 0:00:27]} 25. Qc7+ {[%clk 0:00:41]}  Qxc7 {[%clk 0:00:26]} 26. Rxc7+ {[%clk 0:00:42]}  Re7 {[%clk 0:00:27]} 27. Rxe7+ {[%clk 0:00:37]}  Kxe7 {[%clk 0:00:28]} 28. a4 {[%clk 0:00:32]}  Rd3 {[%clk 0:00:26]} 29. Bb7 {[%clk 0:00:25]}  Rxb3 {[%clk 0:00:22]} 30. a5 {[%clk 0:00:18]}  Ra3 {[%clk 0:00:21]} 31. e4 {[%clk 0:00:19]}  Rxa5 {[%clk 0:00:20]} 32. e5 {[%clk 0:00:19]}  Nd7 {[%clk 0:00:21]} 33. Bd5 {[%clk 0:00:16]}  b4 {[%clk 0:00:20]} 34. Bc4 {[%clk 0:00:14]}  Nxe5 {[%clk 0:00:20]} 35. Bxa6 {[%clk 0:00:13]}  Kd6 {[%clk 0:00:19]} 36. Bb7 {[%clk 0:00:08]}  b3 {[%clk 0:00:18]} 37. Be4 {[%clk 0:00:08]}  Kc5 {[%clk 0:00:17]} 38. Rb1 {[%clk 0:00:07]}  Kb4 {[%clk 0:00:16]} 39. Kf2 {[%clk 0:00:08]}  Nc4 {[%clk 0:00:17]} 40. Ke2 {[%clk 0:00:05]}  Re5 {[%clk 0:00:17]} 41. Kd3 {[%clk 0:00:03]}  Nd2 {[%clk 0:00:12]} 42. Kxd2 {[%clk 0:00:03]}  Rxe4 {[%clk 0:00:12]} 43. Kd3 {[%clk 0:00:03]}  Re7 {[%clk 0:00:12]} 44. g4 {[%clk 0:00:02]}  Rf7 {[%clk 0:00:11]} 45. Ke4 {[%clk 0:00:02]}  Rf2 {[%clk 0:00:10]} 46. h4 {[%clk 0:00:03]}  b2 {[%clk 0:00:11]} 47. Rd1 {[%clk 0:00:02]}  Kb3 {[%clk 0:00:10]} 48. Ke5 {[%clk 0:00:00]}  Kc2 {[%clk 0:00:10]} 0-1

[Event "November 21 Early 2023"]
[Site "https://www.chess.com"]
[Date "2023.11.21"]
[Round "6"]
[White "Srebrnic, Marko"]
[Black "Djordjevic, Vuk"]
[Result "0-1"]
[Board "49"]
[TimeControl "180+1"]
[WhiteFideId "14603616"]
[BlackFideId "902098"]
[WhiteElo "2322"]
[BlackElo "2425"]
[WhiteTeam "SLO"]
[BlackTeam "SRB"]
[WhiteClock "0:00:01"]
[BlackClock "0:00:08"]

1. e4 {[%clk 0:02:32]}  d5 {[%clk 0:02:32]} 2. exd5 {[%clk 0:02:31]}  Qxd5 {[%clk 0:02:30]} 3. Nc3 {[%clk 0:02:31]}  Qd6 {[%clk 0:02:30]} 4. g3 {[%clk 0:02:30]}  Nf6 {[%clk 0:02:30]} 5. Bg2 {[%clk 0:02:30]}  c6 {[%clk 0:02:31]} 6. d3 {[%clk 0:02:30]}  Bg4 {[%clk 0:02:30]} 7. Bf3 {[%clk 0:02:26]}  h5 {[%clk 0:02:06]} 8. Qe2 {[%clk 0:02:23]}  Nbd7 {[%clk 0:02:03]} 9. Ne4 {[%clk 0:02:18]}  Nxe4 {[%clk 0:01:56]} 10. Qxe4 {[%clk 0:02:18]}  Nf6 {[%clk 0:01:51]} 11. Qe2 {[%clk 0:02:17]}  e6 {[%clk 0:01:42]} 12. Bf4 {[%clk 0:02:13]}  Qc5 {[%clk 0:01:32]} 13. O-O-O {[%clk 0:02:07]}  Bd6 {[%clk 0:01:31]} 14. Bxd6 {[%clk 0:01:54]}  Qxd6 {[%clk 0:01:31]} 15. Bxg4 {[%clk 0:01:54]}  hxg4 {[%clk 0:01:25]} 16. h4 {[%clk 0:01:43]}  Qd5 {[%clk 0:01:24]} 17. f3 {[%clk 0:01:19]}  Qxa2 {[%clk 0:01:21]} 18. c3 {[%clk 0:01:17]}  O-O-O {[%clk 0:00:42]} 19. fxg4 {[%clk 0:01:13]}  Qa1+ {[%clk 0:00:42]} 20. Kc2 {[%clk 0:01:13]}  Qa4+ {[%clk 0:00:42]} 21. Kb1 {[%clk 0:01:09]}  Ne4 {[%clk 0:00:24]} 22. Qe1 {[%clk 0:00:40]}  Nc5 {[%clk 0:00:18]} 23. d4 {[%clk 0:00:27]}  Nb3 {[%clk 0:00:19]} 24. Nf3 {[%clk 0:00:21]}  Rd5 {[%clk 0:00:18]} 25. Nd2 {[%clk 0:00:15]}  Ra5 {[%clk 0:00:10]} 26. Nxb3 {[%clk 0:00:12]}  Qxb3 {[%clk 0:00:11]} 27. Rh2 {[%clk 0:00:10]}  Ra2 {[%clk 0:00:08]} 28. Rd3 {[%clk 0:00:04]}  Qa4 {[%clk 0:00:08]} 29. Kc1 {[%clk 0:00:01]}  Ra1+ {[%clk 0:00:08]} 0-1